[Event "10th Floripa Open 2024"]
[Site "Florianopolis"]
[Date "2024.01.21"]
[Round "1.1"]
[White "Tari, Aryan"]
[Black "Szuba, Joao Gabriel Muniz"]
[Result "1-0"]
[ECO "A11"]
[WhiteElo "2623"]
[BlackElo "1709"]
[Annotator "TA"]
[PlyCount "61"]
[EventDate "2024.01.10"]
[EventType "swiss"]
[EventCountry "BRA"]
[SourceTitle "playchess.com"]
[Source "ChessBase"]
[SourceQuality "1"]
[TimeControl "5400+30"]

{[%evp 9,61,17,16,8,9,8,5,0,0,0,0,0,0,0,18,0,53,57,66,40,66,81,128,115,119,126,122,122,145,103,156,184,396,383,794,499,499,498,492,490,766,759,776,764,5879,5481,5458,4330,29982,29983,29985,29986,29985,29986]} 1. c4 {[%emt 0:00:07]} c6 {[%emt 0:00:37]} 2. Nf3 {[%emt 0:00:18]} d5 {[%emt 0:00:23]} 3. e3 {[%emt 0:00:06]} Nf6 {[%emt 0:00:22]} 4. Nc3 {[%emt 0:00:10]} a6 {[%emt 0:00:37]} 5. b3 {[%emt 0:02:07]} Bg4 {[%emt 0:01:17]} 6. Bb2 {[%emt 0:01:56] A11: English Opening: 1...c6.} e6 {[%emt 0:01:09]} 7. h3 {[%emt 0:02:09]} Bh5 {[%emt 0:04:25]} 8. g4 {[%emt 0:04:44] The position is equal.} Bg6 {[%emt 0:00:19]} 9. Ne5 {[%emt 0:00:06]} Nbd7 {[%emt 0:01:04]} 10. Nxg6 {[%emt 0:01:59]} hxg6 {[%emt 0:00:07]} 11. d4 $5 {[%emt 0:03:54][%mdl 4] An interesting side line.} Bd6 {[%emt 0:03:02]} 12. Bg2 {[%emt 0:00:50]} O-O {[%emt 0:05:25] [#]} (12... g5 $11) 13. h4 $146 {[%emt 0:06:18]} ({Predecessor:} 13. g5 Ne8 14. h4 Bc7 15. f4 Nd6 16. h5 Nf5 17. Kf2 Ba5 18. Qg4 Re8 19. Rad1 {1-0 Indjic,A (2618)-Kobalia,M (2614) Titled Tuesday intern op 5th May blitz 2020 (10)}) 13... Bb4 {[%emt 0:20:17]} 14. Kf1 {[%emt 0:05:49]} Bxc3 {[%emt 0:13:37]} 15. Bxc3 {[%emt 0:00:10] White stays focused until the end.} c5 {[%emt 0:01:08]} (15... Ne4 $142 16. Bxe4 dxe4) 16. g5 $16 {[%emt 0:13:30]} Ne4 {[%emt 0:02:41]} 17. Bxe4 {[%emt 0:00:52]} dxe4 {[%emt 0:00:07]} 18. d5 {[%emt 0:00:13]} e5 {[%emt 0:06:33]} 19. d6 {[%emt 0:02:12]} Qb6 {[%emt 0:05:25]} (19... Re8 $142) 20. h5 {[%emt 0:00:42][%cal Bh4h5,Bh5g6][%mdl 32] Threatens to win with hxg6. White is more active.} Qc6 $2 {[%emt 0:01:11] [#]} (20... Qd8) 21. Qg4 $1 $18 {[%emt 0:01:49] Strongly threatening hxg6.} Rae8 $2 {[%emt 0:02:08]} (21... f5 22. gxf6 Rxf6 23. hxg6 Nf8 24. Bxe5 Rxg6) 22. Rd1 {[%emt 0:00:29]} f5 {[%emt 0:03:27]} 23. gxf6 {[%emt 0:01:46]} Rxf6 {[%emt 0:00:14]} 24. hxg6 {[%emt 0:00:27][%cal Oh1h8] White threatens Rh8+! and mate.} Nf8 {[%emt 0:00:19]} (24... Rxd6 $142 25. Rxd6 Qxd6) 25. d7 {[%emt 0:01:14]} Rd8 {[%emt 0:00:26]} 26. Bxe5 {[%emt 0:00:37]} Rxg6 {[%emt 0:00:22] [#] Black is weak on the dark squares} 27. Rh8+ $3 {[%emt 0:00:43][%mdl 576] Decoy, Promotion} Kxh8 {[%emt 0:01:41]} (27... Kf7 28. Qf5+) 28. Qh4+ {[%emt 0:00:01]} Rh6 {[%emt 0:00:31]} 29. Qxd8 {[%emt 0:00:07] White mates.} Kg8 {[%emt 0:01:51] [#]} 30. Qxf8+ $3 {[%emt 0:00:05][%mdl 576] Clearance, Promotion} Kxf8 {[%emt 0:00:06]} 31. d8=Q+ {[%emt 0:00:04] An entertaining game by Tari.   Weighted Error Value: White=0.21 (precise) /Black=0.66} ({Worse is} 31. d8=R+ Ke7 32. Ke2 (32. Bxg7 Rh1+ 33. Ke2 Rxd1 $17) 32... Qe6 $15) 1-0

[Event "10th Floripa Open 2024"]
[Site "Florianopolis"]
[Date "2024.01.21"]
[Round "1.2"]
[White "Dos Santos, Guilherme Fortes"]
[Black "Fier, Alexandr"]
[Result "1/2-1/2"]
[ECO "A70"]
[WhiteElo "1707"]
[BlackElo "2549"]
[Annotator "TA"]
[PlyCount "103"]
[EventDate "2024.01.10"]
[EventType "swiss"]
[EventCountry "BRA"]
[SourceTitle "playchess.com"]
[Source "ChessBase"]
[SourceQuality "1"]
[TimeControl "5400+30"]

{[%evp 21,103,28,34,29,29,-28,-35,-27,-32,-63,-73,-116,-125,-114,-122,-112,-114,-114,-112,-118,-111,-122,-106,-106,-102,-106,-99,-133,-113,-116,-114,-117,-16,-16,-24,-21,0,0,0,0,0,0,0,-8,-2,-4,0,0,0,0,0,0,0,0,0,0,8,0,0,0,0,0,0,0,0,0,0,0,0,0,0,0,0,0,0,0,33,33,33,32,41,35,51,52]} 1. d4 {[%emt 0:01:50]} Nf6 {[%emt 0:00:07]} 2. c4 {[%emt 0:00:13]} c5 {[%emt 0:00:06]} 3. d5 {[%emt 0:01:08]} e6 {[%emt 0:00:10]} 4. Nc3 {[%emt 0:00:11]} exd5 {[%emt 0:00:06]} 5. cxd5 {[%emt 0:00:07]} d6 {[%emt 0:00:04]} 6. e4 {[%emt 0:00:20]} g6 {[%emt 0:00:07]} 7. Nf3 {[%emt 0:00:19]} Bg7 {[%emt 0:00:07]} 8. Bd3 {[%emt 0:00:07]} Bg4 {[%emt 0:00:07]} 9. O-O {[%emt 0:00:28]} Nbd7 {[%emt 0:00:06]} 10. h3 {[%emt 0:00:24]} Bxf3 {[%emt 0:00:06]} 11. Qxf3 {[%emt 0:00:10]} O-O {[%emt 0:00:04]} 12. Bf4 {[%emt 0:01:52] A70: Modern Benoni: 6 e4 g6 7 Nf3.} Qe7 {[%emt 0:00:08]} 13. Nb5 {[%emt 0:07:08]} ({White should play} 13. Bc2) 13... Ne5 $11 {[%emt 0:00:11]} 14. Bxe5 {[%emt 0:01:00] Black is slightly better.} Qxe5 {[%emt 0:00:08] [#]} 15. Rfe1 $146 {[%emt 0:02:33]} ({Predecessor:} 15. Nc3 a6 16. Qe2 b5 17. Rac1 Rfe8 18. Rfe1 Nh5 19. Qe3 Nf4 20. Bb1 b4 21. Nd1 {0-1 Burinda,G (1820)-Ruszin,T (2092) Cseppko op-B 11th 2002 (1)}) 15... a6 {[%emt 0:00:14]} 16. Nxd6 {[%emt 0:00:09][%mdl 64] [#] Remove Defender, Decoy} Qxd6 {[%emt 0:00:24]} 17. e5 {[%emt 0:00:45]} Qxd5 {[%emt 0:00:04]} 18. exf6 {[%emt 0:00:24]} Qxf3 {[%emt 0:00:04]} 19. gxf3 {[%emt 0:00:35]} Bxf6 {[%emt 0:00:03]} 20. Rab1 {[%emt 0:01:59]} Bd4 {[%emt 0:00:09]} 21. a4 {[%emt 0:01:07]} Rad8 {[%emt 0:00:21][%cal Od4f2]} 22. Bc4 {[%emt 0:00:26]} Rd7 {[%emt 0:00:07] Prevents Re7} 23. Re2 {[%emt 0:01:25]} Rfd8 {[%emt 0:00:07]} 24. b4 {[%emt 0:00:42]} Kg7 {[%emt 0:00:13]} 25. bxc5 {[%emt 0:00:43]} Bxc5 {[%emt 0:00:05]} 26. Reb2 {[%emt 0:01:04]} Rd2 {[%emt 0:00:27]} (26... Rd4 $17 27. Rc2 b6) 27. Rxd2 $1 {[%emt 0:07:50]} Rxd2 {[%emt 0:02:13]} 28. Rxb7 {[%emt 0:02:11]} Bxf2+ {[%emt 0:00:45][%mdl 4096] Endgame KRB-KRB} 29. Kf1 {[%emt 0:01:30]} a5 {[%emt 0:00:07]} 30. Bxf7 {[%emt 0:02:07]} Bc5 {[%emt 0:00:11]} 31. Bc4+ {[%emt 0:01:48]} Kh6 {[%emt 0:00:24]} 32. Rb5 {[%emt 0:02:51]} Bb4 {[%emt 0:00:20]} 33. Rb7 {[%emt 0:00:22]} Kg5 {[%emt 0:00:24]} 34. Rxh7 {[%emt 0:00:53]} Kf4 {[%emt 0:00:03]} 35. Be2 {[%emt 0:01:54]} Ra2 {[%emt 0:00:10]} 36. Rh4+ {[%emt 0:03:11]} Kg3 {[%emt 0:00:04] [#] ( -> ...Ra1+)} 37. Rg4+ {[%emt 0:00:07]} Kxh3 {[%emt 0:00:04] Hoping for ...Ra1+.} 38. Bb5 {[%emt 0:00:33]} Bc5 {[%emt 0:01:19]} 39. Rxg6 {[%emt 0:00:31]} Rf2+ {[%emt 0:00:06]} 40. Ke1 {[%emt 0:00:33]} Rxf3 {[%emt 0:00:02]} 41. Ke2 {[%emt 0:00:28]} Re3+ {[%emt 0:00:04]} 42. Kd2 {[%emt 0:00:18]} Ra3 {[%emt 0:00:04]} 43. Ke2 {[%emt 0:02:22]} Kh4 {[%emt 0:00:09]} 44. Rc6 {[%emt 0:02:21]} Re3+ {[%emt 0:00:18]} 45. Kd2 {[%emt 0:00:02]} Re5 {[%emt 0:00:05]} 46. Rg6 {[%emt 0:00:09]} Kh5 {[%emt 0:00:06]} 47. Rg8 {[%emt 0:00:34]} Be7 {[%emt 0:00:18]} 48. Kd3 {[%emt 0:00:45]} Bg5 {[%emt 0:00:05]} 49. Ra8 {[%emt 0:00:15] White is slightly better.} Kg4 {[%emt 0:04:54]} 50. Rxa5 {[%emt 0:01:08]} Kf4 {[%emt 0:00:04]} 51. Ra8 {[%emt 0:00:53]} Be7 {[%emt 0:00:05]} 52. Kd4 {[%emt 0:53:45] Weighted Error Value: White=0.07 (flawless) /Black=0.08 (flawless)} 1/2-1/2

[Event "10th Floripa Open 2024"]
[Site "Florianopolis"]
[Date "2024.01.21"]
[Round "1.3"]
[White "El Debs, Felipe de Cresce"]
[Black "Conor, Gilberto Bordignon"]
[Result "1-0"]
[ECO "D85"]
[WhiteElo "2527"]
[BlackElo "1704"]
[Annotator "TA"]
[PlyCount "44"]
[EventDate "2024.01.10"]
[EventType "swiss"]
[EventCountry "BRA"]
[SourceTitle "playchess.com"]
[Source "ChessBase"]
[SourceQuality "1"]
[TimeControl "5400+30"]

{[%evp 14,44,22,18,20,24,50,38,96,48,119,120,113,131,172,167,379,384,423,425,562,545,657,645,945,886,1376,1410,1360,1359,1561,1507,1989]} 1. d4 {[%emt 0:00:19]} Nf6 {[%emt 0:00:18]} 2. c4 {[%emt 0:00:02]} g6 {[%emt 0:00:10]} 3. Nc3 {[%emt 0:00:10]} d5 {[%emt 0:00:36]} 4. cxd5 {[%emt 0:01:08]} Nxd5 {[%emt 0:00:30]} 5. Bd2 {[%emt 0:00:11]} Bg7 {[%emt 0:01:02]} 6. e4 {[%emt 0:00:07]} Nxc3 {[%emt 0:00:15]} 7. Bxc3 {[%emt 0:00:05]} c5 {[%emt 0:03:28]} 8. d5 {[%emt 0:00:38]} ({Of course not} 8. dxc5 Bxc3+ 9. bxc3 Qc7 $15) 8... Bxc3+ {[%emt 0:04:48] D85: Exchange Grünfeld: Unusual White 7th moves and lines with 7 Nf3.} 9. bxc3 {[%emt 0:00:07]} Qa5 {[%emt 0:01:03] 9...e6 is becoming the main line.} 10. Qd2 {[%emt 0:00:35]} b5 {[%emt 0:05:38]} (10... e6 $14) 11. Rc1 {[%emt 0:11:21] [#]} (11. Bd3 $16) 11... h6 $146 {[%emt 0:07:02]} (11... Nd7 $14) ({Predecessor:} 11... a6 12. Be2 Nd7 13. Nf3 Qc7 14. O-O O-O 15. Qh6 f6 16. Rfd1 Ne5 17. Nd2 g5 {0-1 Bozinovic,B-Ascic,P (2210) CRO-ch Zagreb 1993 (9)}) 12. Nf3 $16 {[%emt 0:01:50]} Nd7 {[%emt 0:01:51]} 13. Be2 {[%emt 0:02:48] White is more active.} Bb7 {[%emt 0:01:00]} 14. O-O {[%emt 0:00:27]} O-O-O $2 {[%emt 0:01:43]} (14... a6 15. c4 Qxd2 16. Nxd2 b4) 15. Rb1 $18 {[%emt 0:06:17]} a6 {[%emt 0:00:41] [#]} 16. a4 $1 {[%emt 0:00:37][%cal Ra4b5][%mdl 512] White is clearly winning.} Qxa4 {[%emt 0:01:50] [#]} (16... bxa4 17. Qb2) 17. c4 $1 {[%emt 0:02:00][%mdl 512]} Nf6 {[%emt 0:13:48]} (17... e6 18. Rfc1) 18. Qe3 {[%emt 0:03:02]} Rd7 {[%emt 0:09:27]} 19. Ra1 {[%emt 0:02:41]} Ng4 {[%emt 0:07:25]} 20. Qxc5+ {[%emt 0:00:23]} Rc7 {[%emt 0:00:11]} 21. Qd4 {[%emt 0:00:05]} e5 {[%emt 0:00:57]} 22. Nxe5 {[%emt 0:01:03]} Nf6 {[%emt 0:37:47] Black got outplayed after the opening.   Weighted Error Value: White=0.05 (flawless) /Black=0.76} 1-0

[Event "10th Floripa Open 2024"]
[Site "Florianopolis"]
[Date "2024.01.21"]
[Round "1.4"]
[White "Rodrigues, Natanael Isau"]
[Black "Cuenca Jimenez, Jose Fernando"]
[Result "0-1"]
[ECO "A48"]
[WhiteElo "1704"]
[BlackElo "2514"]
[Annotator "TA"]
[PlyCount "68"]
[EventDate "2024.01.10"]
[EventType "swiss"]
[EventCountry "BRA"]
[SourceTitle "playchess.com"]
[Source "ChessBase"]
[SourceQuality "1"]
[TimeControl "5400+30"]

{[%evp 9,68,-1,0,-5,-1,-33,-2,-2,-1,-8,0,-13,-12,-22,0,0,0,-56,-69,-66,-41,-45,-41,-50,-44,-82,-61,-61,-64,-61,-78,-183,-177,-267,-232,-458,-453,-540,-487,-645,-639,-585,-556,-579,-590,-618,-595,-984,-970,-995,-763,-29986,-29987,-29987,-29988,-29987,-2970,-2671,-2660,-5647,-3099]} 1. d4 {[%emt 0:00:37]} Nf6 {[%emt 0:00:04]} 2. Nf3 {[%emt 0:04:35]} g6 {[%emt 0:00:09]} 3. e3 {[%emt 0:03:01]} Bg7 {[%emt 0:00:20]} 4. Bd3 {[%emt 0:00:14]} c5 {[%emt 0:01:31]} 5. O-O {[%emt 0:03:59]} d5 {[%emt 0:00:55]} 6. b3 {[%emt 0:01:40]} O-O {[%emt 0:00:21]} 7. Ne5 {[%emt 0:02:52]} b6 {[%emt 0:01:15]} 8. Bb2 {[%emt 0:05:47] The position is equal.} Bb7 {[%emt 0:01:11]} 9. Nd2 {[%emt 0:00:33]} e6 {[%emt 0:04:25]} 10. f4 {[%emt 0:06:07]} Nc6 {[%emt 0:03:45]} 11. Ndf3 {[%emt 0:00:33]} Ne7 {[%emt 0:02:46]} 12. Qe2 {[%emt 0:02:37]} Ne4 {[%emt 0:02:11]} 13. Ba6 {[%emt 0:06:56]} ({White should play} 13. Rfd1 $11) 13... Bxa6 $15 {[%emt 0:00:42]} 14. Qxa6 {[%emt 0:00:11]} Qc7 {[%emt 0:02:01]} 15. Qd3 {[%emt 0:06:12]} Qb7 {[%emt 0:03:19]} 16. Rfc1 {[%emt 0:01:29]} b5 {[%emt 0:05:40][%cal Bb6b5,Bb5b4][%mdl 32]} 17. c3 {[%emt 0:05:25]} c4 {[%emt 0:03:23]} 18. Qe2 {[%emt 0:06:41]} a5 {[%emt 0:01:15] Black is more active.} 19. bxc4 {[%emt 0:04:43]} dxc4 {[%emt 0:01:26]} 20. Ba3 {[%emt 0:00:19] Black keeps a firm grip on the game.} (20. a4 $17 {is a better defense.}) 20... b4 $19 {[%emt 0:01:48] [#] aiming for ...Bxe5.} 21. Rab1 {[%emt 0:00:12]} (21. Bb2 $142 Nd5 22. Nxc4 (22. cxb4 $2 c3 $19)) 21... Nd5 {[%emt 0:00:42]} (21... Nxc3 22. Rxc3 (22. Qxc4 $2 Nxb1 23. Rxb1 Qe4 $19) 22... Qa6 23. Rxc4 Bxe5 24. Nxe5 $16) 22. cxb4 {[%emt 0:12:04]} (22. Bb2 Bxe5 23. fxe5) 22... Nec3 {[%emt 0:00:38]} (22... axb4 $2 23. Bxb4 (23. Nxc4 $2 Nec3 $19) 23... Rfb8 24. Nxc4 $19 (24. Rxc4 $2 Nec3 $19) (24. Rxc4 $2 Nec3 $19)) 23. Qxc4 {[%emt 0:01:31][%cal Ob4b5]} Rfc8 {[%emt 0:01:32][%mdl 64] [#] Against b5. Deflection} ({But not} 23... Nxe3 24. Qxc3 Nd5 25. Qd2 (25. bxa5 Qxb1 26. Qc4 Qb8 $14) 25... axb4 26. Bxb4 $18) 24. Qd3 {[%emt 0:12:59]} Nxb1 {[%emt 0:00:19]} 25. Qxb1 {[%emt 0:01:07]} axb4 {[%emt 0:03:45]} ({And not} 25... Nxb4 26. Nc4 $17) 26. Bb2 {[%emt 0:00:39]} Nxe3 {[%emt 0:00:26]} 27. Re1 {[%emt 0:00:34]} Nd5 {[%emt 0:00:25]} 28. Qe4 {[%emt 0:00:30]} Rxa2 {[%emt 0:02:54]} 29. Rb1 {[%emt 0:00:49]} Qc7 {[%emt 0:02:01]} 30. Rc1 {[%emt 0:01:33]} Qxc1+ {[%emt 0:00:56]} 31. Bxc1 {[%emt 0:00:32]} Rxc1+ {[%emt 0:00:06]} 32. Ne1 {[%emt 0:00:34]} Nc3 {[%emt 0:00:14]} (32... f5 $142 33. h4 fxe4 34. Ng4 Rxe1+ 35. Kh2 h5 36. Kg3 hxg4 37. h5 Re3+ 38. Kh2 Nxf4 39. hxg6 Rxg2+ 40. Kh1 Rh3#) 33. Qe3 {[%emt 0:01:03]} Raa1 {[%emt 0:00:19]} 34. Kf2 {[%emt 0:03:52]} Nd1+ {[%emt 0:00:07][%mdl 64] Deflection, Double Attack. Excellently played by Cuenca Jimenez!   Weighted Error Value: White=0.98/Black=0.30} 0-1

[Event "10th Floripa Open 2024"]
[Site "Florianopolis"]
[Date "2024.01.21"]
[Round "1.5"]
[White "Salinas Herrera, Pablo"]
[Black "De Haro, Martim Afonso Palma"]
[Result "1-0"]
[ECO "B30"]
[WhiteElo "2477"]
[BlackElo "1704"]
[Annotator "RC"]
[PlyCount "37"]
[EventDate "2024.01.10"]
[EventType "swiss"]
[EventCountry "BRA"]
[SourceTitle "playchess.com"]
[Source "ChessBase"]
[SourceQuality "1"]
[TimeControl "5400+30"]

1. e4 {[%emt 0:01:20]} c5 {[%emt 0:01:13]} 2. Nf3 {[%emt 0:00:09]} Nc6 {[%emt 0:00:06]} 3. Bb5 {[%emt 0:00:07]} Nd4 {[%emt 0:00:56]} 4. Nxd4 {[%emt 0:00:55]} cxd4 {[%emt 0:00:06]} 5. O-O {[%emt 0:00:05]} Nf6 {[%emt 0:02:09]} 6. e5 {[%emt 0:02:58]} Nd5 {[%emt 0:03:04]} 7. Qg4 {[%emt 0:06:34]} Nc7 {[%emt 0:06:45]} 8. Ba4 {[%emt 0:02:00]} Ne6 {[%emt 0:10:03]} 9. c3 {[%emt 0:01:03]} Qa5 {[%emt 0:06:26]} 10. Bb3 {[%emt 0:00:06]} Qxe5 {[%emt 0:02:18]} 11. Na3 {[%emt 0:00:07]} d5 {[%emt 0:00:47]} 12. Qf3 {[%emt 0:07:41]} Nf4 {[%emt 0:08:02]} 13. Nb5 {[%emt 0:05:32]} d3 {[%emt 0:05:20]} 14. Qe3 {[%emt 0:03:13]} Qg5 {[%emt 0:08:17]} 15. g3 {[%emt 0:00:11]} Ne2+ {[%emt 0:11:27]} 16. Kg2 {[%emt 0:00:52]} Qh5 {[%emt 0:31:31]} 17. Nd6+ {[%emt 1:06:07]} Kd8 {[%emt 0:00:30]} 18. Nxc8 {[%emt 0:00:30]} Ke8 {[%emt 0:00:30]} 19. Nd6+ {[%emt 0:00:00]} 1-0

[Event "10th Floripa Open 2024"]
[Site "Florianopolis"]
[Date "2024.01.21"]
[Round "1.6"]
[White "Felix, Joao Eduardo Orlandi"]
[Black "Galego, Luis"]
[Result "0-1"]
[ECO "B41"]
[WhiteElo "1703"]
[BlackElo "2468"]
[Annotator "RC"]
[PlyCount "113"]
[EventDate "2024.01.10"]
[EventType "swiss"]
[EventCountry "BRA"]
[SourceTitle "playchess.com"]
[Source "ChessBase"]
[SourceQuality "1"]
[TimeControl "5400+30"]

1. e4 {[%emt 0:00:15]} c5 {[%emt 0:00:06]} 2. Nf3 {[%emt 0:00:27]} e6 {[%emt 0:00:05]} 3. d4 {[%emt 0:00:09]} cxd4 {[%emt 0:00:06]} 4. Nxd4 {[%emt 0:00:02]} a6 {[%emt 0:00:06]} 5. Be2 {[%emt 0:00:58]} Nf6 {[%emt 0:00:29]} 6. Nc3 {[%emt 0:00:10]} Bb4 {[%emt 0:01:06]} 7. Qd3 {[%emt 0:02:50]} d5 {[%emt 0:01:42]} 8. exd5 {[%emt 0:07:48]} Nxd5 {[%emt 0:14:53]} 9. O-O {[%emt 0:10:37]} Nxc3 {[%emt 0:00:13]} 10. bxc3 {[%emt 0:00:10]} Be7 {[%emt 0:00:04]} 11. Bf3 {[%emt 0:00:41]} Nd7 {[%emt 0:04:08]} 12. Re1 {[%emt 0:13:08]} O-O {[%emt 0:03:04]} 13. Nb3 {[%emt 0:05:48]} Qc7 {[%emt 0:01:39]} 14. Bb2 {[%emt 0:02:26]} Ne5 {[%emt 0:03:17]} 15. Qe4 {[%emt 0:04:30]} Nxf3+ {[%emt 0:01:07]} 16. Qxf3 {[%emt 0:00:02]} Bd7 {[%emt 0:02:48]} 17. Rad1 {[%emt 0:04:02]} Bc6 {[%emt 0:01:15]} 18. Qg3 {[%emt 0:01:50]} Qxg3 {[%emt 0:00:13]} 19. hxg3 {[%emt 0:00:09]} Bf6 {[%emt 0:03:38]} 20. Ba3 {[%emt 0:03:25]} Rfd8 {[%emt 0:02:46]} 21. Bb4 {[%emt 0:08:32]} Bd5 {[%emt 0:07:14]} 22. a4 {[%emt 0:16:12]} Rdc8 {[%emt 0:04:06]} 23. Re3 {[%emt 0:02:37]} h5 {[%emt 0:00:46]} 24. a5 {[%emt 0:06:24]} Rc7 {[%emt 0:02:58]} 25. f4 {[%emt 0:04:57]} Rac8 {[%emt 0:00:48]} 26. Nd4 {[%emt 0:00:07]} Rc4 {[%emt 0:01:38]} 27. Re2 {[%emt 0:01:27]} g6 {[%emt 0:02:51]} 28. Kf2 {[%emt 0:01:48]} Bg7 {[%emt 0:00:52]} 29. Red2 {[%emt 0:01:13]} Bh6 {[%emt 0:03:04]} 30. Ne2 {[%emt 0:01:20]} Bf8 {[%emt 0:01:00]} 31. Rb1 {[%emt 0:00:36]} Bxb4 {[%emt 0:02:52]} 32. Rxb4 {[%emt 0:00:14]} R4c5 {[%emt 0:00:50]} 33. Ra4 {[%emt 0:00:06]} Rb5 {[%emt 0:00:19]} 34. Ra3 {[%emt 0:00:19]} Rcc5 {[%emt 0:00:50]} 35. Rd4 {[%emt 0:00:55]} Rxa5 {[%emt 0:00:28]} 36. Rxa5 {[%emt 0:00:09]} Rxa5 {[%emt 0:00:03]} 37. c4 {[%emt 0:00:29]} Bc6 {[%emt 0:00:01]} 38. Rd8+ {[%emt 0:00:08]} Kg7 {[%emt 0:00:05]} 39. Nd4 {[%emt 0:00:16]} Rc5 {[%emt 0:00:51]} 40. Nxc6 {[%emt 0:00:31]} Rxc6 {[%emt 0:00:06]} 41. Rd7 {[%emt 0:00:13]} Rxc4 {[%emt 0:00:11]} 42. Rxb7 {[%emt 0:00:06]} Rxc2+ {[%emt 0:00:04]} 43. Kf3 {[%emt 0:00:06]} a5 {[%emt 0:00:39]} 44. Ra7 {[%emt 0:00:06]} Ra2 {[%emt 0:00:09]} 45. Ra6 {[%emt 0:00:13]} Kf6 {[%emt 0:02:19]} 46. Ra7 {[%emt 0:00:08]} Ra1 {[%emt 0:00:12]} 47. Kf2 {[%emt 0:00:24]} Ra3 {[%emt 0:00:17]} 48. Rb7 {[%emt 0:00:36]} Rd3 {[%emt 0:00:54]} 49. Ra7 {[%emt 0:00:06]} Rd5 {[%emt 0:00:25]} 50. Kf3 {[%emt 0:00:20]} Rb5 {[%emt 0:00:09]} 51. Kf2 {[%emt 0:00:14]} g5 {[%emt 0:00:10]} 52. Kf3 {[%emt 0:00:39]} Kg6 {[%emt 0:00:42]} 53. Ra6 {[%emt 0:00:18]} Kf5 {[%emt 0:01:36]} 54. fxg5 {[%emt 0:01:05]} Kxg5 {[%emt 0:00:18]} 55. Ra8 {[%emt 0:00:11]} Rf5+ {[%emt 0:00:19]} 56. Ke3 {[%emt 0:00:26]} Kg4 {[%emt 0:00:14]} 57. Kd4 {[%emt 0:06:02]} 0-1

[Event "10th Floripa Open 2024"]
[Site "Florianopolis"]
[Date "2024.01.21"]
[Round "1.7"]
[White "Flores Quillas, Diego Saul Rodri"]
[Black "Cordioli, Jairo Ribeiro"]
[Result "1-0"]
[ECO "B55"]
[WhiteElo "2429"]
[BlackElo "1703"]
[Annotator "RC"]
[PlyCount "96"]
[EventDate "2024.01.10"]
[EventType "swiss"]
[EventCountry "BRA"]
[SourceTitle "playchess.com"]
[Source "ChessBase"]
[SourceQuality "1"]
[TimeControl "5400+30"]

1. e4 {[%emt 0:00:04]} c5 {[%emt 0:00:03]} 2. Nf3 {[%emt 0:00:07]} d6 {[%emt 0:00:06]} 3. d4 {[%emt 0:00:03]} cxd4 {[%emt 0:00:05]} 4. Nxd4 {[%emt 0:00:02]} Nf6 {[%emt 0:00:08]} 5. f3 {[%emt 0:00:03]} Nc6 {[%emt 0:01:14]} 6. c4 {[%emt 0:00:07]} Qb6 {[%emt 0:03:55]} 7. Nc2 {[%emt 0:00:54]} g6 {[%emt 0:01:44]} 8. Nc3 {[%emt 0:00:06]} Bg7 {[%emt 0:01:47]} 9. Rb1 {[%emt 0:00:22]} O-O {[%emt 0:01:16]} 10. Be3 {[%emt 0:00:06]} Qd8 {[%emt 0:01:16]} 11. Be2 {[%emt 0:00:35]} Be6 {[%emt 0:01:23]} 12. Qd2 {[%emt 0:00:09]} Rc8 {[%emt 0:00:37]} 13. O-O {[%emt 0:00:13]} Nd7 {[%emt 0:01:27]} 14. Nd5 {[%emt 0:00:33]} b6 {[%emt 0:01:15]} 15. b3 {[%emt 0:00:28]} Kh8 {[%emt 0:04:34]} 16. Rbd1 {[%emt 0:01:52]} f5 {[%emt 0:01:24]} 17. exf5 {[%emt 0:00:06]} Bxf5 {[%emt 0:00:48]} 18. Bd3 {[%emt 0:00:56]} Bxd3 {[%emt 0:01:20]} 19. Qxd3 {[%emt 0:00:04]} Nde5 {[%emt 0:00:25]} 20. Qe2 {[%emt 0:01:49]} Qd7 {[%emt 0:00:18]} 21. f4 {[%emt 0:00:59]} Ng4 {[%emt 0:01:19]} 22. Bc1 {[%emt 0:00:06]} Rce8 {[%emt 0:01:01]} 23. Ba3 {[%emt 0:05:09]} e5 {[%emt 0:05:00]} 24. h3 {[%emt 0:00:08]} Nf6 {[%emt 0:01:27]} 25. Nxf6 {[%emt 0:00:16]} Rxf6 {[%emt 0:00:37]} 26. fxe5 {[%emt 0:00:07]} Rxf1+ {[%emt 0:00:22]} 27. Qxf1 {[%emt 0:00:10]} Bxe5 {[%emt 0:00:25]} 28. Bxd6 {[%emt 0:00:27]} Qg7 {[%emt 0:06:02]} 29. Kh1 {[%emt 0:01:49]} Re6 {[%emt 0:10:19]} 30. Bxe5 {[%emt 0:00:27]} Rxe5 {[%emt 0:00:12]} 31. Qf3 {[%emt 0:00:31]} Re6 {[%emt 0:54:11]} 32. Rd7 {[%emt 0:02:48]} Qf6 {[%emt 0:00:00]} 33. Qxf6+ {[%emt 0:00:06]} Rxf6 {[%emt 0:00:00]} 34. Ne3 {[%emt 0:00:20]} a5 {[%emt 0:00:00]} 35. Nd5 {[%emt 0:01:35]} Rf1+ {[%emt 0:00:00]} 36. Kh2 {[%emt 0:00:02]} Rf2 {[%emt 0:00:00]} 37. Rd6 {[%emt 0:00:31]} Ne5 {[%emt 0:00:00]} 38. a4 {[%emt 0:00:06]} Rb2 {[%emt 0:00:00]} 39. Rxb6 {[%emt 0:00:38]} Nf3+ {[%emt 0:00:00]} 40. Kg3 {[%emt 0:00:06]} Nd4 {[%emt 0:00:00]} 41. b4 {[%emt 0:01:37]} axb4 {[%emt 0:00:00]} 42. Rxb4 {[%emt 0:00:10]} Ra2 {[%emt 0:00:00]} 43. c5 {[%emt 0:03:31]} Nf5+ {[%emt 0:00:00]} 44. Kf4 {[%emt 0:00:05]} Rxg2 {[%emt 0:00:00]} 45. c6 {[%emt 0:00:07]} Rc2 {[%emt 0:00:00]} 46. c7 {[%emt 0:00:16]} Kg7 {[%emt 0:00:00]} 47. Rb8 {[%emt 0:00:46]} Nd6 {[%emt 0:00:00]} 48. Rd8 {[%emt 0:00:16]} Rc4+ {[%emt 0:08:30]} 1-0